[Event "*** Titled Tuesday 3|2 Blitz (Early)"]
[Site "Chess.com"]
[Date "2016.11.01"]
[Round "1"]
[White "FearlessKing64"]
[Black "superjem123"]
[Result "0-1"]
[WhiteElo "2154"]
[BlackElo "2504"]
[TimeControl "180+2"]
[EndTime "11:08:28 PDT"]
[Termination "superjem123 won on time"]

1. e4 {[%clk 0:02:59.8]} 1... e5 {[%clk 0:02:59.9]} 2. Nf3 {[%clk 0:03:00.4]}
2... Nc6 {[%clk 0:03:01]} 3. Bc4 {[%clk 0:03:02]} 3... Bc5 {[%clk 0:03:01.3]} 4.
b4 {[%clk 0:03:02.8]} 4... Bxb4 {[%clk 0:03:01.2]} 5. c3 {[%clk 0:03:03.4]} 5...
Ba5 {[%clk 0:03:02.3]} 6. d4 {[%clk 0:03:04.5]} 6... d6 {[%clk 0:03:03.2]} 7.
dxe5 {[%clk 0:02:54.2]} 7... dxe5 {[%clk 0:03:00.6]} 8. Qb3 {[%clk 0:02:54.6]}
8... Qf6 {[%clk 0:02:57.5]} 9. O-O {[%clk 0:02:43.2]} 9... h6 {[%clk 0:02:38.5]}
10. Ba3 {[%clk 0:02:32.7]} 10... Bb6 {[%clk 0:02:35.2]} 11. Nbd2 {[%clk
0:02:07.2]} 11... Bd7 {[%clk 0:02:24.6]} 12. Bd5 {[%clk 0:02:00.1]} 12... Nge7
{[%clk 0:02:13.4]} 13. Nc4 {[%clk 0:01:53.1]} 13... O-O {[%clk 0:01:52.5]} 14.
Bxc6 {[%clk 0:01:53.9]} 14... Bxc6 {[%clk 0:01:47]} 15. Nfxe5 {[%clk 0:01:49.9]}
15... Rfe8 {[%clk 0:01:39.5]} 16. Nxb6 {[%clk 0:01:28.1]} 16... axb6 {[%clk
0:01:37.1]} 17. Nxc6 {[%clk 0:01:18.5]} 17... Nxc6 {[%clk 0:01:39]} 18. f3
{[%clk 0:01:01]} 18... Na5 {[%clk 0:01:39.5]} 19. Qc2 {[%clk 0:00:55.1]} 19...
Nc4 {[%clk 0:01:38.4]} 20. Bc1 {[%clk 0:00:55.5]} 20... Red8 {[%clk 0:01:37.8]}
21. a4 {[%clk 0:00:48.7]} 21... b5 {[%clk 0:01:31.9]} 22. Qb3 {[%clk 0:00:33.8]}
22... c6 {[%clk 0:01:14.2]} 23. Ra2 {[%clk 0:00:29.7]} 23... Na5 {[%clk
0:00:57.2]} 24. Qb4 {[%clk 0:00:22.8]} 24... Qe6 {[%clk 0:00:47.8]} 25. Raf2
{[%clk 0:00:11.9]} 25... bxa4 {[%clk 0:00:41.9]} 26. Qxa4 {[%clk 0:00:12.4]}
26... Nc4 {[%clk 0:00:42.1]} 27. Qc2 {[%clk 0:00:11.5]} 27... Ra1 {[%clk
0:00:37]} 28. f4 {[%clk 0:00:09.5]} 28... Qd7 {[%clk 0:00:30]} 29. f5 {[%clk
0:00:07.4]} 29... Qd3 {[%clk 0:00:30.6]} 30. Qb3 {[%clk 0:00:03.2]} 30... b5
{[%clk 0:00:16.9]} 31. f6 {[%clk 0:00:03.1]} 31... g6 {[%clk 0:00:17.5]} 32.
Bxh6 {[%clk 0:00:03]} 32... Rxf1+ {[%clk 0:00:17]} 33. Rxf1 {[%clk 0:00:04.5]}
33... Qxe4 {[%clk 0:00:18.3]} 34. Qb1 {[%clk 0:00:02.6]} 34... Qe5 {[%clk
0:00:16.5]} 0-1

[Event "*** Titled Tuesday 3|2 Blitz (Early)"]
[Site "Chess.com"]
[Date "2016.11.01"]
[Round "1"]
[White "VSERGUEI"]
[Black "YuriyKrykun"]
[Result "1-0"]
[WhiteElo "2578"]
[BlackElo "2290"]
[TimeControl "180+2"]
[EndTime "11:08:29 PDT"]
[Termination "VSERGUEI won by resignation"]

1. d4 {[%clk 0:03:00.2]} 1... Nf6 {[%clk 0:02:59.4]} 2. c4 {[%clk 0:03:00.7]}
2... g6 {[%clk 0:03:00.3]} 3. Nc3 {[%clk 0:03:01.2]} 3... d5 {[%clk 0:03:00.9]}
4. Nf3 {[%clk 0:03:01.3]} 4... Bg7 {[%clk 0:03:01.9]} 5. Bg5 {[%clk 0:03:01.6]}
5... Ne4 {[%clk 0:03:02.1]} 6. cxd5 {[%clk 0:03:02.8]} 6... Nxg5 {[%clk
0:03:02.9]} 7. Nxg5 {[%clk 0:03:03.8]} 7... e6 {[%clk 0:03:04.3]} 8. Qd2 {[%clk
0:03:04.8]} 8... exd5 {[%clk 0:03:04.9]} 9. Qe3+ {[%clk 0:03:05.7]} 9... Kf8
{[%clk 0:03:06.5]} 10. Nf3 {[%clk 0:03:05.2]} 10... c6 {[%clk 0:02:54.7]} 11. g3
{[%clk 0:02:56.6]} 11... Nd7 {[%clk 0:02:53.2]} 12. Bg2 {[%clk 0:02:57]} 12...
Nf6 {[%clk 0:02:54.3]} 13. O-O {[%clk 0:02:57.5]} 13... Bg4 {[%clk 0:02:45.4]}
14. Ne5 {[%clk 0:02:57]} 14... h5 {[%clk 0:02:46.3]} 15. f4 {[%clk 0:02:55.5]}
15... Bf5 {[%clk 0:02:45.5]} 16. Qd2 {[%clk 0:02:52.3]} 16... Kg8 {[%clk
0:02:45.5]} 17. e3 {[%clk 0:02:51.1]} 17... Qe7 {[%clk 0:02:44.8]} 18. h3 {[%clk
0:02:50.3]} 18... Kh7 {[%clk 0:02:44.5]} 19. Kh2 {[%clk 0:02:45.7]} 19... Nd7
{[%clk 0:02:30.6]} 20. Rae1 {[%clk 0:02:39.5]} 20... f6 {[%clk 0:02:29]} 21. Nf3
{[%clk 0:02:38.4]} 21... Be4 {[%clk 0:02:26.8]} 22. Nh4 {[%clk 0:02:31.2]} 22...
Bxg2 {[%clk 0:02:24.7]} 23. Qxg2 {[%clk 0:02:30.6]} 23... f5 {[%clk 0:02:26]}
24. Nf3 {[%clk 0:02:30]} 24... Nf6 {[%clk 0:02:26.2]} 25. Ng5+ {[%clk
0:02:29.6]} 25... Kh6 {[%clk 0:02:24.4]} 26. Rh1 {[%clk 0:02:26.6]} 26... Rhe8
{[%clk 0:02:24.6]} 27. g4 {[%clk 0:02:25.1]} 27... Qd7 {[%clk 0:01:30.3]} 28.
gxh5 {[%clk 0:02:15.6]} 28... Nxh5 {[%clk 0:01:29.6]} 29. Rhg1 {[%clk
0:02:15.5]} 29... Rg8 {[%clk 0:01:27.1]} 30. Na4 {[%clk 0:02:01.5]} 30... b6
{[%clk 0:01:23.5]} 31. b3 {[%clk 0:02:02]} 31... Bf6 {[%clk 0:01:23.3]} 32. Nb2
{[%clk 0:02:02.6]} 32... Bxg5 {[%clk 0:01:23.5]} 33. Qxg5+ {[%clk 0:02:02.7]}
33... Kh7 {[%clk 0:01:25.1]} 34. Nd3 {[%clk 0:02:03.6]} 34... Rae8 {[%clk
0:01:21.4]} 35. Ne5 {[%clk 0:02:04.4]} 35... Qd6 {[%clk 0:01:22]} 36. Rc1 {[%clk
0:01:58.6]} 36... c5 {[%clk 0:01:22.8]} 37. Rg2 {[%clk 0:01:42.8]} 37... Re6
{[%clk 0:01:11.3]} 38. Rcg1 {[%clk 0:01:27.3]} 38... Qe7 {[%clk 0:01:02.3]} 39.
Nxg6 {[%clk 0:01:12.9]} 39... Qxg5 {[%clk 0:00:44.7]} 40. Rxg5 {[%clk
0:01:12.7]} 40... Rgxg6 {[%clk 0:00:46]} 41. Rxh5+ {[%clk 0:01:12.9]} 41... Kg7
{[%clk 0:00:47.6]} 42. Rxf5 {[%clk 0:01:09.6]} 42... Rxg1 {[%clk 0:00:42.6]} 43.
Kxg1 {[%clk 0:01:09]} 43... Rxe3 {[%clk 0:00:44.1]} 44. dxc5 {[%clk 0:01:09.7]}
44... bxc5 {[%clk 0:00:42.4]} 45. Rxd5 {[%clk 0:01:09.9]} 45... Re1+ {[%clk
0:00:43.2]} 46. Kf2 {[%clk 0:01:09.3]} 46... Ra1 {[%clk 0:00:44.2]} 47. Rd7+
{[%clk 0:01:10.3]} 47... Kf6 {[%clk 0:00:45.1]} 48. Rxa7 {[%clk 0:01:11.1]}
48... Kf5 {[%clk 0:00:46.7]} 49. Ke3 {[%clk 0:01:10.8]} 49... Re1+ {[%clk
0:00:46.2]} 50. Kd3 {[%clk 0:01:07.5]} 50... Kxf4 {[%clk 0:00:47.2]} 51. Kc4
{[%clk 0:01:08.4]} 51... Rc1+ {[%clk 0:00:48]} 52. Kd5 {[%clk 0:01:09.4]} 52...
Kg3 {[%clk 0:00:48.4]} 53. Ra5 {[%clk 0:01:09.1]} 53... Rc2 {[%clk 0:00:48.9]}
54. a4 {[%clk 0:01:06.8]} 54... Rc3 {[%clk 0:00:49]} 55. Rb5 {[%clk 0:01:07.2]}
55... Kxh3 {[%clk 0:00:49.1]} 56. a5 {[%clk 0:01:08.4]} 56... Kg4 {[%clk
0:00:50.8]} 57. a6 {[%clk 0:01:09.5]} 1-0

[Event "*** Titled Tuesday 3|2 Blitz (Early)"]
[Site "Chess.com"]
[Date "2016.11.01"]
[Round "1"]
[White "Keaton87"]
[Black "howitzer14"]
[Result "0-1"]
[WhiteElo "2428"]
[BlackElo "2758"]
[TimeControl "180+2"]
[EndTime "11:08:36 PDT"]
[Termination "howitzer14 won by resignation"]

1. d4 {[%clk 0:03:00.2]} 1... Nf6 {[%clk 0:03:00.6]} 2. Nf3 {[%clk 0:03:00.7]}
2... g6 {[%clk 0:03:02.5]} 3. Bf4 {[%clk 0:02:59.2]} 3... Bg7 {[%clk 0:03:03.9]}
4. e3 {[%clk 0:02:58.1]} 4... O-O {[%clk 0:03:05.8]} 5. Be2 {[%clk 0:02:59.6]}
5... d6 {[%clk 0:03:07.5]} 6. O-O {[%clk 0:02:59.3]} 6... Nc6 {[%clk 0:03:09.4]}
7. h3 {[%clk 0:02:57.9]} 7... Nd7 {[%clk 0:03:08.8]} 8. Bh2 {[%clk 0:02:51.5]}
8... e5 {[%clk 0:03:09.7]} 9. c4 {[%clk 0:02:52.1]} 9... exd4 {[%clk 0:03:10.1]}
10. exd4 {[%clk 0:02:52.4]} 10... Re8 {[%clk 0:03:12]} 11. Nc3 {[%clk
0:02:53.2]} 11... Nf6 {[%clk 0:03:13.4]} 12. Re1 {[%clk 0:02:50.9]} 12... Bf5
{[%clk 0:03:08.4]} 13. Qd2 {[%clk 0:02:37.3]} 13... Ne4 {[%clk 0:03:07.6]} 14.
Nxe4 {[%clk 0:02:33.9]} 14... Bxe4 {[%clk 0:03:01.2]} 15. d5 {[%clk 0:02:35]}
15... Bxf3 {[%clk 0:02:57]} 16. Bxf3 {[%clk 0:02:35]} 16... Nd4 {[%clk
0:02:55.6]} 17. Be2 {[%clk 0:02:21.8]} 17... Qf6 {[%clk 0:02:46.7]} 18. Bf1
{[%clk 0:02:19.8]} 18... h5 {[%clk 0:02:40.8]} 19. Rad1 {[%clk 0:02:07.6]} 19...
Nf5 {[%clk 0:02:30.4]} 20. b3 {[%clk 0:02:05.4]} 20... b6 {[%clk 0:02:30.1]} 21.
Rxe8+ {[%clk 0:02:03.4]} 21... Rxe8 {[%clk 0:02:30.1]} 22. Re1 {[%clk
0:02:04.9]} 22... Rxe1 {[%clk 0:02:27.8]} 23. Qxe1 {[%clk 0:02:06.8]} 23... Kf8
{[%clk 0:02:29.7]} 24. Bd3 {[%clk 0:01:58.4]} 24... Nd4 {[%clk 0:02:24.5]} 25.
Qe4 {[%clk 0:01:49.8]} 25... a5 {[%clk 0:02:20.8]} 26. Qf4 {[%clk 0:01:48.1]}
26... Qe7 {[%clk 0:02:14.6]} 27. Qe4 {[%clk 0:01:46.7]} 27... Qxe4 {[%clk
0:02:06.9]} 28. Bxe4 {[%clk 0:01:48.6]} 28... Ne2+ {[%clk 0:02:08.8]} 29. Kf1
{[%clk 0:01:47.7]} 29... Nc3 {[%clk 0:02:10.7]} 30. Bc2 {[%clk 0:01:43.1]} 30...
Nxa2 {[%clk 0:02:11.9]} 31. g4 {[%clk 0:01:40.6]} 31... hxg4 {[%clk 0:02:07.9]}
32. hxg4 {[%clk 0:01:41.4]} 32... Nb4 {[%clk 0:02:09.8]} 33. Bb1 {[%clk
0:01:40.9]} 33... Na6 {[%clk 0:02:08.4]} 34. f4 {[%clk 0:01:39.7]} 34... Bd4
{[%clk 0:02:05.9]} 35. Ke2 {[%clk 0:01:37.4]} 35... Nc5 {[%clk 0:02:04]} 36. Bc2
{[%clk 0:01:37.9]} 36... Ke7 {[%clk 0:02:02.3]} 37. g5 {[%clk 0:01:36]} 37...
Na6 {[%clk 0:01:58.6]} 38. Bg3 {[%clk 0:01:27.9]} 38... Nb4 {[%clk 0:01:51.9]}
39. Bb1 {[%clk 0:01:28.6]} 39... b5 {[%clk 0:01:48.1]} 40. Be1 {[%clk
0:01:23.2]} 40... bxc4 {[%clk 0:01:49.1]} 41. Bxb4 {[%clk 0:01:24]} 41... axb4
{[%clk 0:01:48]} 42. bxc4 {[%clk 0:01:25]} 42... b3 {[%clk 0:01:45.9]} 43. Kd3
{[%clk 0:01:25.5]} 43... Bb2 {[%clk 0:01:38.7]} 44. Ke4 {[%clk 0:01:25.3]} 44...
Bc1 {[%clk 0:01:35.2]} 45. Kf3 {[%clk 0:01:14.8]} 45... Kd8 {[%clk 0:01:26.8]}
46. Kg4 {[%clk 0:01:12.1]} 46... Kc8 {[%clk 0:01:23.2]} 47. f5 {[%clk
0:01:13.4]} 47... gxf5+ {[%clk 0:01:23.8]} 48. Kxf5 {[%clk 0:01:14.5]} 48... Kb7
{[%clk 0:01:25.4]} 49. Kf6 {[%clk 0:00:39.4]} 49... Kb6 {[%clk 0:01:24.6]} 50.
Kxf7 {[%clk 0:00:39.4]} 50... Bxg5 {[%clk 0:01:25.8]} 51. Ke6 {[%clk 0:00:39.1]}
51... Kc5 {[%clk 0:01:20.1]} 52. Kd7 {[%clk 0:00:34.2]} 52... Kxc4 {[%clk
0:01:17.4]} 53. Kxc7 {[%clk 0:00:35.4]} 53... Bf4 {[%clk 0:01:19]} 54. Kc6
{[%clk 0:00:35.8]} 54... b2 {[%clk 0:01:06.5]} 0-1

[Event "*** Titled Tuesday 3|2 Blitz (Early)"]
[Site "Chess.com"]
[Date "2016.11.01"]
[Round "1"]
[White "jk13"]
[Black "Morshynska"]
[Result "0-1"]
[WhiteElo "2460"]
[BlackElo "2135"]
[TimeControl "180+2"]
[EndTime "11:08:57 PDT"]
[Termination "Morshynska won by resignation"]

1. e4 {[%clk 0:02:59.8]} 1... e5 {[%clk 0:02:59.5]} 2. Nf3 {[%clk 0:02:59.9]}
2... Nc6 {[%clk 0:03:00.5]} 3. Bc4 {[%clk 0:02:58.2]} 3... Bc5 {[%clk
0:03:00.9]} 4. c3 {[%clk 0:02:57.9]} 4... Nf6 {[%clk 0:03:01.5]} 5. d3 {[%clk
0:02:59.4]} 5... d6 {[%clk 0:03:02]} 6. Bb3 {[%clk 0:03:00.9]} 6... a6 {[%clk
0:03:02.8]} 7. h3 {[%clk 0:03:02.3]} 7... Ba7 {[%clk 0:03:03.5]} 8. Nbd2 {[%clk
0:03:03.4]} 8... Be6 {[%clk 0:03:02]} 9. Bc2 {[%clk 0:03:04.6]} 9... O-O {[%clk
0:03:00.5]} 10. O-O {[%clk 0:03:04.5]} 10... h6 {[%clk 0:02:57.4]} 11. Re1
{[%clk 0:03:05.9]} 11... Re8 {[%clk 0:02:58.2]} 12. Nf1 {[%clk 0:03:07.4]} 12...
d5 {[%clk 0:02:58.5]} 13. Qe2 {[%clk 0:03:08.1]} 13... b5 {[%clk 0:02:54.5]} 14.
Rd1 {[%clk 0:03:07.9]} 14... d4 {[%clk 0:02:51.8]} 15. Ng3 {[%clk 0:03:08.9]}
15... dxc3 {[%clk 0:02:51.1]} 16. bxc3 {[%clk 0:03:09.3]} 16... b4 {[%clk
0:02:41.2]} 17. Ba4 {[%clk 0:03:08.6]} 17... Qd6 {[%clk 0:02:27.4]} 18. cxb4
{[%clk 0:03:03.3]} 18... Nd4 {[%clk 0:01:56.1]} 19. Nxd4 {[%clk 0:03:03.6]}
19... Bxd4 {[%clk 0:01:58]} 20. Rb1 {[%clk 0:02:59.6]} 20... Reb8 {[%clk
0:01:58.9]} 21. a3 {[%clk 0:02:59.2]} 21... a5 {[%clk 0:01:59.6]} 22. b5 {[%clk
0:02:53.6]} 22... c6 {[%clk 0:01:57.5]} 23. Be3 {[%clk 0:02:47.5]} 23... Bxe3
{[%clk 0:01:49.8]} 24. Qxe3 {[%clk 0:02:46]} 24... cxb5 {[%clk 0:01:45.3]} 25.
Bxb5 {[%clk 0:02:47.9]} 25... Qxa3 {[%clk 0:01:45.3]} 26. Ra1 {[%clk 0:02:13.9]}
26... Qd6 {[%clk 0:01:36.1]} 27. Ba4 {[%clk 0:02:13.3]} 27... Rb4 {[%clk
0:01:34.9]} 28. Ne2 {[%clk 0:02:09.9]} 28... Bb3 {[%clk 0:01:30.2]} 29. Bxb3
{[%clk 0:02:04]} 29... Rxb3 {[%clk 0:01:32.1]} 30. f4 {[%clk 0:02:01.6]} 30...
exf4 {[%clk 0:01:25.9]} 31. Nxf4 {[%clk 0:01:59.2]} 31... Qe5 {[%clk 0:01:12.6]}
32. Qf2 {[%clk 0:01:52.9]} 32... a4 {[%clk 0:01:09.3]} 33. Ra2 {[%clk
0:01:45.9]} 33... a3 {[%clk 0:01:06.8]} 34. Rda1 {[%clk 0:01:45.7]} 34... Kh7
{[%clk 0:01:01.8]} 35. Qd2 {[%clk 0:01:38]} 35... Rb2 {[%clk 0:00:54.4]} 36. Qc1
{[%clk 0:01:28.2]} 36... Qd4+ {[%clk 0:00:39.2]} 37. Kh1 {[%clk 0:01:28.3]}
37... Qf2 {[%clk 0:00:37.2]} 38. Rxa3 {[%clk 0:01:18.3]} 38... Rxa3 {[%clk
0:00:29.5]} 39. Rxa3 {[%clk 0:01:20.2]} 39... Rd2 {[%clk 0:00:27.1]} 40. e5
{[%clk 0:01:07.4]} 40... Nh5 {[%clk 0:00:21.6]} 41. Qg1 {[%clk 0:00:49.1]} 41...
Qxf4 {[%clk 0:00:18.6]} 42. Qe1 {[%clk 0:00:42.1]} 42... Ng3+ {[%clk 0:00:13.5]}
43. Kg1 {[%clk 0:00:43.5]} 43... Re2 {[%clk 0:00:11.1]} 44. Qb1 {[%clk
0:00:32.4]} 44... Qf2+ {[%clk 0:00:10.2]} 0-1

[Event "*** Titled Tuesday 3|2 Blitz (Early)"]
[Site "Chess.com"]
[Date "2016.11.01"]
[Round "1"]
[White "Usurpov"]
[Black "Matibar"]
[Result "0-1"]
[WhiteElo "2264"]
[BlackElo "2557"]
[TimeControl "180+2"]
[EndTime "11:09:36 PDT"]
[Termination "Matibar won by resignation"]

1. e4 {[%clk 0:03:01.9]} 1... g6 {[%clk 0:02:58.3]} 2. d4 {[%clk 0:03:01.8]}
2... Bg7 {[%clk 0:02:59.5]} 3. Nc3 {[%clk 0:03:02.7]} 3... a6 {[%clk 0:02:59]}
4. f4 {[%clk 0:03:01]} 4... b5 {[%clk 0:02:59.4]} 5. Nf3 {[%clk 0:03:02]} 5...
Bb7 {[%clk 0:03:00.1]} 6. Bd3 {[%clk 0:03:02.8]} 6... d6 {[%clk 0:02:59.8]} 7.
Qe2 {[%clk 0:02:59.3]} 7... Nd7 {[%clk 0:02:52.8]} 8. a4 {[%clk 0:02:46.9]} 8...
b4 {[%clk 0:02:49.7]} 9. Nb1 {[%clk 0:02:42]} 9... Ngf6 {[%clk 0:02:36.7]} 10.
O-O {[%clk 0:02:31.2]} 10... O-O {[%clk 0:02:18.8]} 11. Nbd2 {[%clk 0:02:19.1]}
11... e6 {[%clk 0:02:13]} 12. c3 {[%clk 0:02:05.3]} 12... a5 {[%clk 0:02:13]}
13. cxb4 {[%clk 0:01:51.1]} 13... axb4 {[%clk 0:02:14.9]} 14. Nb3 {[%clk
0:01:52.2]} 14... d5 {[%clk 0:02:00.3]} 15. e5 {[%clk 0:01:49]} 15... Ne4 {[%clk
0:02:01.6]} 16. Nbd2 {[%clk 0:01:45.8]} 16... f5 {[%clk 0:01:49.5]} 17. exf6
{[%clk 0:01:37.8]} 17... Ndxf6 {[%clk 0:01:50.3]} 18. Ne5 {[%clk 0:01:32.2]}
18... c5 {[%clk 0:01:46.9]} 19. Nxe4 {[%clk 0:01:17.1]} 19... dxe4 {[%clk
0:01:31.3]} 20. Bc4 {[%clk 0:01:17.7]} 20... cxd4 {[%clk 0:01:32.5]} 21. Bxe6+
{[%clk 0:01:08.3]} 21... Kh8 {[%clk 0:01:33.4]} 22. Nf7+ {[%clk 0:01:02.9]}
22... Rxf7 {[%clk 0:01:30.5]} 23. Bxf7 {[%clk 0:01:04.8]} 23... e3 {[%clk
0:01:23]} 24. Bc4 {[%clk 0:00:56.2]} 24... Qd6 {[%clk 0:01:08.5]} 25. a5 {[%clk
0:00:53.4]} 25... Rd8 {[%clk 0:01:07.5]} 26. a6 {[%clk 0:00:54.3]} 26... Ba8
{[%clk 0:01:08.6]} 27. Bd3 {[%clk 0:00:41.9]} 27... Nd5 {[%clk 0:01:05.7]} 28.
Qg4 {[%clk 0:00:15.6]} 28... b3 {[%clk 0:00:39.8]} 29. f5 {[%clk 0:00:08.2]}
29... Nf6 {[%clk 0:00:38.1]} 30. Qh3 {[%clk 0:00:07.4]} 30... g5 {[%clk
0:00:38.5]} 31. Qg3 {[%clk 0:00:06.3]} 31... Qxg3 {[%clk 0:00:33.3]} 32. hxg3
{[%clk 0:00:08.2]} 32... Ng4 {[%clk 0:00:34.8]} 33. Be2 {[%clk 0:00:08]} 33...
Ne5 {[%clk 0:00:34.9]} 34. Rd1 {[%clk 0:00:09.2]} 34... Bf6 {[%clk 0:00:32.6]}
35. Kf1 {[%clk 0:00:08.3]} 35... d3 {[%clk 0:00:28.4]} 36. Bxe3 {[%clk
0:00:09.3]} 36... dxe2+ {[%clk 0:00:29.1]} 37. Kxe2 {[%clk 0:00:11.2]} 37... Re8
{[%clk 0:00:30.6]} 38. Bd4 {[%clk 0:00:10.8]} 38... Bxg2 {[%clk 0:00:26.6]} 39.
Kf2 {[%clk 0:00:10.9]} 39... Ba8 {[%clk 0:00:26.1]} 40. Bc3 {[%clk 0:00:10]}
40... Ng4+ {[%clk 0:00:24.9]} 41. Kg1 {[%clk 0:00:11]} 41... Bxc3 {[%clk
0:00:25.8]} 42. bxc3 {[%clk 0:00:12.9]} 42... Kg7 {[%clk 0:00:23.2]} 43. a7
{[%clk 0:00:14.1]} 43... Re2 {[%clk 0:00:24.1]} 44. Rd7+ {[%clk 0:00:13.6]}
44... Kf6 {[%clk 0:00:19.9]} 45. Ra6+ {[%clk 0:00:14.8]} 45... Kxf5 {[%clk
0:00:21.4]} 46. Rf7+ {[%clk 0:00:16.3]} 46... Ke4 {[%clk 0:00:22.8]} 47. Re7+
{[%clk 0:00:17.2]} 47... Ne5 {[%clk 0:00:21.9]} 48. Rae6 {[%clk 0:00:15.4]}
48... b2 {[%clk 0:00:19.8]} 49. Rxe5+ {[%clk 0:00:16]} 49... Kf3 {[%clk
0:00:20.9]} 50. Rf7+ {[%clk 0:00:16.4]} 50... Kxg3 {[%clk 0:00:20.8]} 51. Rxe2
{[%clk 0:00:17.3]} 51... b1=Q+ {[%clk 0:00:21.8]} 52. Rf1 {[%clk 0:00:19.2]}
52... Qb7 {[%clk 0:00:22.6]} 53. Re3+ {[%clk 0:00:19.5]} 53... Kg4 {[%clk
0:00:24.1]} 54. Kf2 {[%clk 0:00:20.2]} 54... Qxa7 {[%clk 0:00:24.1]} 55. Rg1+
{[%clk 0:00:21.7]} 55... Kf4 {[%clk 0:00:25.4]} 0-1

[Event "*** Titled Tuesday 3|2 Blitz (Early)"]
[Site "Chess.com"]
[Date "2016.11.01"]
[Round "1"]
[White "GMKrikor"]
[Black "Quiet_Desperation"]
[Result "1/2-1/2"]
[WhiteElo "2579"]
[BlackElo "2305"]
[TimeControl "180+2"]
[EndTime "11:09:37 PDT"]
[Termination "Game drawn by agreement"]

1. e4 {[%clk 0:02:39.7]} 1... Nc6 {[%clk 0:02:55.6]} 2. Nf3 {[%clk 0:02:40]}
2... d6 {[%clk 0:02:54.2]} 3. d4 {[%clk 0:02:35.5]} 3... Nf6 {[%clk 0:02:53.3]}
4. Nc3 {[%clk 0:02:21.4]} 4... d5 {[%clk 0:02:53.8]} 5. e5 {[%clk 0:02:14.1]}
5... Ne4 {[%clk 0:02:52.5]} 6. Bd3 {[%clk 0:02:13.2]} 6... Bf5 {[%clk
0:02:51.4]} 7. Qe2 {[%clk 0:02:10.1]} 7... Nxc3 {[%clk 0:02:49.2]} 8. bxc3
{[%clk 0:02:10.6]} 8... Bxd3 {[%clk 0:02:48.5]} 9. cxd3 {[%clk 0:02:10.4]} 9...
e6 {[%clk 0:02:49.7]} 10. Rb1 {[%clk 0:02:04.9]} 10... Rb8 {[%clk 0:02:48.8]}
11. h4 {[%clk 0:01:59.7]} 11... Be7 {[%clk 0:02:49.5]} 12. h5 {[%clk 0:02:00.6]}
12... h6 {[%clk 0:02:43.9]} 13. g4 {[%clk 0:01:41.8]} 13... a5 {[%clk
0:02:31.2]} 14. Rg1 {[%clk 0:01:35.7]} 14... b5 {[%clk 0:02:29.6]} 15. a3 {[%clk
0:01:29.3]} 15... b4 {[%clk 0:02:28]} 16. axb4 {[%clk 0:01:29.6]} 16... axb4
{[%clk 0:02:27.9]} 17. cxb4 {[%clk 0:01:27.5]} 17... Bxb4+ {[%clk 0:02:16.1]}
18. Kf1 {[%clk 0:01:27.8]} 18... Be7 {[%clk 0:02:16.9]} 19. Rxb8 {[%clk
0:01:26.2]} 19... Qxb8 {[%clk 0:02:17.5]} 20. Kg2 {[%clk 0:01:22.7]} 20... Qb3
{[%clk 0:02:08.7]} 21. Be3 {[%clk 0:01:20.1]} 21... Kd7 {[%clk 0:02:05.8]} 22.
Rc1 {[%clk 0:01:00.5]} 22... Ra8 {[%clk 0:01:52.5]} 23. Qd1 {[%clk 0:00:33.9]}
23... Qxd1 {[%clk 0:01:50.7]} 24. Rxd1 {[%clk 0:00:29.9]} 24... Ra3 {[%clk
0:01:50.3]} 25. Ne1 {[%clk 0:00:30.3]} 25... Nb4 {[%clk 0:01:44.9]} 26. f4
{[%clk 0:00:29.9]} 26... Bh4 {[%clk 0:01:41.7]} 27. Kf3 {[%clk 0:00:20.4]} 27...
Bxe1 {[%clk 0:01:42.1]} 28. Rxe1 {[%clk 0:00:21.9]} 28... Nxd3 {[%clk
0:01:37.1]} 29. Rb1 {[%clk 0:00:19]} 29... Kc6 {[%clk 0:01:15.5]} 30. Ke2 {[%clk
0:00:17.4]} 30... Kd7 {[%clk 0:00:54.9]} 31. Kd2 {[%clk 0:00:18.6]} 31... c5
{[%clk 0:00:54.5]} 32. dxc5 {[%clk 0:00:20.1]} 32... d4 {[%clk 0:00:44.6]} 33.
Bxd4 {[%clk 0:00:19.5]} 33... Nxf4 {[%clk 0:00:45.8]} 34. Rb7+ {[%clk
0:00:20.7]} 34... Kc6 {[%clk 0:00:44.7]} 35. Rb6+ {[%clk 0:00:22.2]} 35... Kd5
{[%clk 0:00:44]} 36. Bb2 {[%clk 0:00:11.7]} 36... Rd3+ {[%clk 0:00:40.9]} 37.
Kc2 {[%clk 0:00:13.2]} 37... Kxc5 {[%clk 0:00:38.6]} 38. Rb7 {[%clk 0:00:14.9]}
38... Rg3 {[%clk 0:00:36.9]} 39. Rxf7 {[%clk 0:00:12.9]} 39... Rxg4 {[%clk
0:00:37.8]} 40. Ba3+ {[%clk 0:00:11.5]} 40... Kd5 {[%clk 0:00:38.7]} 41. Bf8
{[%clk 0:00:13.4]} 41... Nxh5 {[%clk 0:00:37.2]} 42. Bd6 {[%clk 0:00:14.8]}
42... Nf4 {[%clk 0:00:36.7]} 43. Bf8 {[%clk 0:00:14.8]} 43... Kxe5 {[%clk
0:00:34.4]} 44. Bxg7+ {[%clk 0:00:16.2]} 44... Ke4 {[%clk 0:00:32.3]} 45. Bxh6
{[%clk 0:00:18.1]} 45... e5 {[%clk 0:00:30.5]} 46. Kd2 {[%clk 0:00:19.7]} 46...
Rg2+ {[%clk 0:00:31]} 47. Ke1 {[%clk 0:00:21]} 47... Kf3 {[%clk 0:00:30]} 48.
Bxf4 {[%clk 0:00:21.4]} 48... exf4 {[%clk 0:00:30.7]} 49. Kf1 {[%clk 0:00:23]}
49... Rb2 {[%clk 0:00:30]} 50. Kg1 {[%clk 0:00:23.8]} 50... Rb1+ {[%clk
0:00:29]} 51. Kh2 {[%clk 0:00:25.1]} 51... Rb2+ {[%clk 0:00:29.8]} 52. Kg1
{[%clk 0:00:26.2]} 52... Rg2+ {[%clk 0:00:30.3]} 53. Kf1 {[%clk 0:00:27.4]}
53... Rf2+ {[%clk 0:00:30.1]} 54. Kg1 {[%clk 0:00:28.1]} 54... Rg2+ {[%clk
0:00:30.5]} 55. Kf1 {[%clk 0:00:29]} 55... Rb2 {[%clk 0:00:30.2]} 56. Kg1 {[%clk
0:00:30.1]} 56... Ke3 {[%clk 0:00:26.6]} 57. Re7+ {[%clk 0:00:27.7]} 57... Kf3
{[%clk 0:00:27.4]} 58. Rf7 {[%clk 0:00:28.4]} 58... Rb1+ {[%clk 0:00:23.7]} 59.
Kh2 {[%clk 0:00:28.9]} 59... Ke2 {[%clk 0:00:24.4]} 1/2-1/2